fUSD/lending_fUSD_20250226
["ID","MTS","AMOUNT","RATE_DAILY","PERIOD"]
[354598911,1740594645876,-500.0,0.00035616,14]
[354598913,1740594645886,-586.41,0.00035616,14]
[354598915,1740594645895,-1481.35,0.00035616,14]
[354598917,1740594645905,-510.00603525,0.00035616,14]
[354598919,1740594645915,-500.0,0.00035616,14]
[354598921,1740594645924,-1200.4,0.00035616,14]
[354598923,1740594645933,-637.36,0.00035616,14]
[354598925,1740594645943,-616.83,0.00035616,14]
[354598928,1740594645952,-509.63583036,0.00035616,14]
[354598930,1740594645962,-500.0,0.00035616,14]
[354598931,1740594645971,-500.0,0.00035616,14]
[354598934,1740594645980,-501.23331816,0.00035616,14]
[354598936,1740594645990,-500.0,0.00035616,14]
[354598938,1740594645999,-500.0,0.00035616,14]
[354598940,1740594646009,-1103.82,0.00035616,14]
[354598942,1740594646018,-1081.41,0.00035616,14]
[354598944,1740594646029,-151.0,0.00035616,7]
[354598946,1740594646041,-301.062953,0.00035616,7]
[354598948,1740594646051,-500.0,0.00035616,14]
[354598950,1740594646060,-500.0,0.00035616,14]
[354598952,1740594646070,-500.0,0.00035616,14]
[354598954,1740594646080,-500.0,0.00035616,14]
[354598956,1740594646089,-500.0,0.00035616,14]
[354598958,1740594646099,-498.52988441,0.00035616,14]
[354598960,1740594646109,-2083.25,0.00035616,14]
[354598962,1740594646119,-500.0,0.00035616,14]
[354598964,1740594646131,-500.0,0.00035616,14]
[354598966,1740594646141,-1065.69,0.00035616,14]
[354598968,1740594646151,-570.34,0.00035616,14]
[354598970,1740594646160,-500.0,0.00035616,14]
[354598972,1740594646170,-500.0,0.00035616,14]
[354598974,1740594646179,-500.0,0.00035616,14]
[354598976,1740594646189,-500.0,0.00035616,14]
[354598978,1740594646198,-500.0,0.00035616,14]
[354598980,1740594646207,-500.0,0.00035616,14]
[354598982,1740594646217,-2267.72,0.00035616,14]
[354598984,1740594646228,-500.0,0.00035616,14]
[354598986,1740594646238,-500.0,0.00035616,14]
[354598988,1740594646247,-818.45,0.00035616,14]
[354598990,1740594646257,-500.0,0.00035616,14]
[354598992,1740594646266,-598.22902717,0.00035616,14]
[354598994,1740594646277,-500.0,0.00035616,14]
[354598996,1740594646289,-500.0,0.00035616,14]
[354598998,1740594646299,-500.0,0.00035616,14]
[354599000,1740594646309,-500.0,0.00035616,14]
[354599002,1740594646319,-1134.45,0.00035616,14]
[354599004,1740594646330,-500.0,0.00035616,14]
[354599006,1740594646340,-151.0,0.00035616,7]
[354599008,1740594646349,-151.0,0.00035616,7]
[354599010,1740594646359,-500.0,0.00035616,14]
[354599012,1740594646368,-1561.19,0.00035616,14]
[354599014,1740594646378,-500.0,0.00035616,14]
[354599016,1740594646387,-151.0,0.00035616,7]
[354599018,1740594646397,-500.0,0.00035616,14]
[354599020,1740594646406,-500.0,0.00035616,14]
[354599022,1740594646416,-500.0,0.00035616,14]
[354599024,1740594646426,-500.0,0.00035616,14]
[354599026,1740594646435,-500.0,0.00035616,14]
[354599027,1740594646445,-500.0,0.00035616,14]
[354599029,1740594646457,-2183.87,0.00035616,14]
[354599031,1740594646466,-811.76,0.00035616,14]
[354599033,1740594646476,-973.76,0.00035616,14]
[354599035,1740594646486,-500.0,0.00035616,14]
[354599037,1740594646496,-528.00825172,0.00035616,14]
[354599039,1740594646506,-500.0,0.00035616,14]
[354599041,1740594646517,-972.97,0.00035616,14]
[354599043,1740594646531,-542.34935467,0.00035616,14]
[354599046,1740594646546,-500.0,0.00035616,14]
[354599048,1740594646556,-500.0,0.00035616,14]
[354599050,1740594646567,-500.0,0.00035616,14]
[354599052,1740594646578,-1503.82,0.00035616,14]
[354599054,1740594646587,-500.0,0.00035616,14]
[354599056,1740594646597,-500.0,0.00035616,14]
[354599058,1740594646607,-621.82,0.00035616,14]
[354599060,1740594646617,-2191.37,0.00035616,14]
[354599062,1740594646627,-1924.23,0.00035616,14]
[354599064,1740594646638,-500.0,0.00035616,14]
[354599066,1740594646649,-1063.92,0.00035616,14]
[354599068,1740594646658,-436.97490927,0.00035616,14]
[354599162,1740594648326,-63.02509073,0.00035616,14]
[354599163,1740594648338,-500.0,0.00035616,14]
[354599164,1740594648349,-880.86,0.00035616,14]
[354599165,1740594648361,-500.0,0.00035616,14]
[354599166,1740594648371,-500.0,0.00035616,14]
[354599167,1740594648381,-661.54,0.00035616,14]
[354599168,1740594648392,-908.23,0.00035616,14]
[354599169,1740594648402,-500.0,0.00035616,14]
[354599170,1740594648411,-500.0,0.00035616,14]
[354599171,1740594648421,-500.0,0.00035616,7]
[354599172,1740594648432,-872.17,0.00035616,14]
[354599173,1740594648443,-898.16,0.00035616,14]
[354599174,1740594648454,-698.44,0.00035616,14]
[354599175,1740594648466,-500.0,0.00035616,14]
[354599176,1740594648477,-706.49,0.00035616,14]
[354599177,1740594648488,-500.0,0.00035616,14]
[354599178,1740594648498,-811.6,0.00035616,14]
[354599179,1740594648508,-500.0,0.00035616,14]
[354599180,1740594648522,-500.0,0.00035616,14]
[354599181,1740594648534,-500.0,0.00035616,14]
[354599182,1740594648551,-605.59,0.00035616,14]
[354599183,1740594648560,-500.0,0.00035616,14]
[354599184,1740594648570,-728.95,0.00035616,14]
[354599185,1740594648579,-771.48,0.00035616,14]
[354599186,1740594648588,-536.69533669,0.00035616,14]
[354599187,1740594648597,-550.01,0.00035616,14]
[354599188,1740594648606,-703.11,0.00035616,14]
[354599189,1740594648616,-500.0,0.00035616,14]
[354599190,1740594648626,-500.0,0.00035616,14]
[354599191,1740594648635,-1112.32,0.00035616,14]
[354599192,1740594648644,-887.07,0.00035616,14]
[354599193,1740594648653,-500.0,0.00035616,14]
[354599194,1740594648663,-500.0,0.00035616,14]
[354599195,1740594648672,-500.0,0.00035616,14]
[354599196,1740594648682,-500.0,0.00035616,14]
[354599197,1740594648691,-500.0,0.00035616,14]
[354599198,1740594648700,-500.0,0.00035616,14]
[354599199,1740594648710,-441.31836534,0.00035616,14]
[354599200,1740594648720,-890.31,0.00035616,14]
[354599201,1740594648729,-621.04,0.00035616,14]
[354599202,1740594648739,-695.33,0.00035616,14]
[354599203,1740594648748,-1129.39,0.00035616,14]
[354599204,1740594648757,-804.09,0.00035616,14]
[354599205,1740594648766,-500.0,0.00035616,14]
[354599206,1740594648776,-151.0,0.00035616,7]
[354599207,1740594648788,-151.0,0.00035616,7]
[354599208,1740594648800,-500.0,0.00035616,14]
[354599209,1740594648813,-925.25,0.00035616,14]
[354599210,1740594648823,-151.0,0.00035616,7]
[354599211,1740594648834,-500.0,0.00035616,14]
[354599212,1740594648845,-596.18,0.00035616,14]
[354599213,1740594648856,-500.57,0.00035616,14]
[354599214,1740594648867,-2252.39,0.00035616,14]
[354599215,1740594648877,-500.0,0.00035616,14]
[354599216,1740594648887,-422.63556849,0.00035616,14]
[354599217,1740594648898,-500.0,0.00035616,14]
[354599218,1740594648909,-571.03,0.00035616,14]
[354599219,1740594648919,-500.0,0.00035616,14]
[354599220,1740594648930,-625.81,0.00035616,14]
[354599221,1740594648941,-1014.21,0.00035616,14]
[354599222,1740594648951,-500.0,0.00035616,14]
[354599223,1740594648962,-1309.64,0.00035616,14]
[354599224,1740594648972,-500.0,0.00035616,14]
[354599225,1740594648982,-252.06563875,0.00035616,14]
[354599226,1740594648999,-247.93436125,0.00035616,14]
[354599227,1740594649009,-16.06563875,0.00035616,14]
[354599228,1740594649023,-483.93436125,0.00035616,14]
[354599229,1740594649033,-19.59736141,0.00035616,14]
[354599231,1740594649058,-480.40263859,0.00035616,14]
[354599232,1740594649068,-878.42,0.00035616,14]
[354599234,1740594649079,-575.66,0.00035616,14]
[354599235,1740594649088,-238.32954787,0.00035616,14]
[354599236,1740594649098,-1936.02,0.00035616,14]
[354599237,1740594649108,-195.46781354,0.00035616,14]
[354599238,1740594650318,-390.17519332,0.00035616,14]
[354599239,1740594650328,-500.0,0.00035616,14]
[354599240,1740594650338,-501.99419004,0.00035616,14]
[354599241,1740594650347,-1131.81,0.00035616,14]
[354599242,1740594650357,-500.0,0.00035616,14]
[354599243,1740594650367,-500.0,0.00035616,14]
[354599244,1740594650378,-500.0,0.00035616,14]
[354599245,1740594650387,-1878.73,0.00035616,14]
[354599246,1740594650397,-1895.77,0.00035616,14]
[354599247,1740594650407,-500.0,0.00035616,14]
[354599248,1740594650416,-325.90053099,0.00035616,14]
[354599249,1740594650425,-862.61,0.00035616,14]
[354599250,1740594650435,-1374.22636286,0.00035616,14]
[354599251,1740594650451,-141.55363714,0.00035616,14]
[354599252,1740594650461,-500.0,0.00035616,14]
[354599253,1740594650470,-300.0,0.00035616,14]
[354599254,1740594650480,-500.0,0.00035616,14]
[354599255,1740594650490,-1115.76,0.00035616,14]
[354599256,1740594650499,-41.59901684,0.00035616,14]
[354599257,1740594650957,-2683.0,0.00028233,5]
[354599258,1740594650966,-2625.11451955,0.00033567,2]
[354599259,1740594650975,-3312.9882,0.000348,2]
[354599260,1740594650985,-439.56,0.00035068,2]
[354599261,1740594650994,-458.40098316,0.00035616,14]
[354599262,1740594651003,-500.0,0.00035616,14]
[354599263,1740594651012,-784.5,0.00035616,14]
[354599264,1740594651021,-500.0,0.00035616,14]
[354599265,1740594651030,-500.0,0.00035616,14]
[354599266,1740594651042,-169.278229,0.00035616,7]
[354599267,1740594651052,-500.0,0.00035616,14]
[354599268,1740594651062,-500.0,0.00035616,14]
[354599269,1740594651071,-169.278229,0.00035616,7]
[354599270,1740594651080,-500.0,0.00035616,14]
[354599271,1740594651090,-500.0,0.00035616,14]
[354599272,1740594651099,-662.32,0.00035616,14]
[354599273,1740594651108,-169.278229,0.00035616,7]
[354599274,1740594651117,-500.0,0.00035616,14]
[354599275,1740594651126,-169.278229,0.00035616,7]
[354599276,1740594651136,-151.0,0.00035616,7]
[354599277,1740594651145,-684.94,0.00035616,14]
[354599278,1740594651154,-500.0,0.00035616,14]
[354599279,1740594651164,-151.0,0.00035616,7]
[354599280,1740594651173,-500.0,0.00035616,14]
[354599281,1740594651183,-500.0,0.00035616,14]
[354599282,1740594651194,-500.0,0.00035616,14]
[354599283,1740594651203,-838.54,0.00035616,14]
[354599284,1740594651212,-500.0,0.00035616,14]
[354599285,1740594651225,-1450.34,0.00035616,14]
[354599286,1740594651235,-1345.21,0.00035616,14]
[354599287,1740594651244,-500.0,0.00035616,14]
[354599288,1740594651254,-500.0,0.00035616,14]
[354599289,1740594651263,-1384.2,0.00035616,14]
[354599290,1740594651272,-500.0,0.00035616,14]
[354599291,1740594651281,-731.85,0.00035616,14]
[354599292,1740594651296,-776.71,0.00035616,14]
[354599293,1740594651305,-500.0,0.00035616,14]
[354599294,1740594651314,-1498.71,0.00035616,14]
[354599295,1740594651323,-291.778172,0.00035616,7]
[354599296,1740594651332,-291.778172,0.00035616,7]
[354599297,1740594651341,-620.72,0.00035616,14]
[354599298,1740594651351,-291.778172,0.00035616,7]
[354599299,1740594651361,-500.0,0.00035616,14]
[354599300,1740594651371,-626.43,0.00035616,14]
[354599301,1740594651381,-1033.05,0.00035616,14]
[354599302,1740594651390,-500.0,0.00035616,2]
[354599303,1740594651399,-500.0,0.00035616,2]
[354599304,1740594651408,-2083.32,0.00035616,14]
[354599305,1740594651417,-500.0,0.00035616,2]
[354599306,1740594651427,-500.0,0.00035616,2]
[354599307,1740594651436,-500.0,0.00035616,14]
[354599308,1740594651445,-500.0,0.00035616,2]
[354599309,1740594651454,-291.778172,0.00035616,7]
[354599310,1740594651463,-500.0,0.00035616,2]
[354599311,1740594651473,-500.0,0.00035616,2]
[354599312,1740594651482,-1913.87,0.00035616,14]
[354599313,1740594651491,-291.778172,0.00035616,7]
[354599314,1740594651501,-291.778172,0.00035616,7]
[354599315,1740594651510,-347.01209676,0.00035616,14]
[354599316,1740594651520,-500.0,0.00035616,14]
[354599317,1740594651531,-151.0,0.00035616,7]
[354599318,1740594651546,-151.0,0.00035616,7]
[354599319,1740594651556,-151.0,0.00035616,7]
[354599320,1740594651567,-704.74,0.00035616,14]
[354599321,1740594651576,-699.33,0.00035616,14]
[354599322,1740594651585,-500.0,0.00035616,14]
[354599323,1740594651595,-153.69833985,0.00035616,14]
[354599324,1740594651605,-1285.58,0.00035616,14]
[354599325,1740594651615,-587.92,0.00035616,14]
[354599326,1740594651625,-500.0,0.00035616,14]
[354599327,1740594651634,-187.6432973,0.00035616,14]
[354599328,1740594651644,-500.0,0.00035616,14]
[354599329,1740594651654,-500.0,0.00035616,14]
[354599330,1740594651663,-590.55,0.00035616,14]
[354599331,1740594651672,-599.03,0.00035616,14]
[354599332,1740594651681,-500.0,0.00035616,14]
[354599333,1740594651691,-560.01,0.00035616,14]
[354599334,1740594651701,-780.44,0.00035616,14]
[354599335,1740594651711,-680.05,0.00035616,14]
[354599336,1740594651720,-500.0,0.00035616,14]
[354599337,1740594651730,-1322.34,0.00035616,14]
[354599338,1740594651739,-500.0,0.00035616,14]
[354599339,1740594651749,-1762.67,0.00035616,14]
[354599340,1740594651759,-500.0,0.00035616,14]
[354599341,1740594651768,-500.0,0.00035616,14]
[354599342,1740594651778,-500.0,0.00035616,14]
[354599343,1740594651791,-500.0,0.00035616,14]
[354599344,1740594651801,-500.0,0.00035616,14]
[354599345,1740594651810,-583.51964829,0.00035616,14]
[354599346,1740594651819,-602.63,0.00035616,14]
[354599347,1740594651828,-626.22,0.00035616,14]
[354599348,1740594651838,-1475.74,0.00035616,14]
[354599349,1740594651847,-151.0,0.00035616,7]
[354599350,1740594651856,-500.0,0.00035616,14]
[354599351,1740594651866,-151.0,0.00035616,7]
[354599352,1740594651875,-500.0,0.00035616,14]
[354599353,1740594651885,-151.0,0.00035616,7]
[354599354,1740594651894,-500.0,0.00035616,14]
[354599355,1740594651904,-606.58,0.00035616,14]
[354599356,1740594651913,-501.03091903,0.00035616,14]
[354599357,1740594651922,-500.0,0.00035616,14]
[354599358,1740594651932,-1063.11,0.00035616,14]
[354599359,1740594651941,-500.0,0.00035616,14]
[354599360,1740594651950,-961.4,0.00035616,14]
[354599361,1740594651960,-500.0,0.00035616,14]
[354599362,1740594651969,-500.0,0.00035616,14]
[354599363,1740594651978,-500.0,0.00035616,14]
[354599364,1740594651987,-500.0,0.00035616,14]
[354599365,1740594651996,-500.0,0.00035616,14]
[354599366,1740594652005,-608.34,0.00035616,14]
[354599367,1740594652015,-500.0,0.00035616,14]
[354599368,1740594652024,-719.4,0.00035616,14]
[354599369,1740594652033,-500.0,0.00035616,14]
[354599370,1740594652046,-1162.17,0.00035616,14]
[354599371,1740594652056,-749.33,0.00035616,14]
[354599372,1740594652065,-500.0,0.00035616,14]
[354599373,1740594652075,-270.569568,0.00035616,7]
[354599374,1740594652084,-270.569568,0.00035616,7]
[354599375,1740594652093,-500.0,0.00035616,14]
[354599376,1740594652102,-270.569568,0.00035616,7]
[354599377,1740594652111,-651.46,0.00035616,14]
[354599378,1740594652120,-500.0,0.00035616,14]
[354599379,1740594652130,-870.72,0.00035616,14]
[354599380,1740594652139,-270.569568,0.00035616,7]
[354599381,1740594652149,-727.17,0.00035616,14]
[354599382,1740594652158,-576.17,0.00035616,14]
[354599383,1740594652167,-270.569568,0.00035616,7]
[354599384,1740594652176,-270.569568,0.00035616,7]
[354599385,1740594652186,-1236.76,0.00035616,14]
[354599386,1740594652196,-1062.82,0.00035616,14]
[354599387,1740594652205,-629.47,0.00035616,14]
[354599388,1740594652214,-2590.13,0.00035616,14]
[354599389,1740594652223,-508.62614444,0.00035616,14]
[354599390,1740594652232,-500.0,0.00035616,14]
[354599391,1740594652241,-500.0,0.00035616,14]
[354599392,1740594652250,-500.0,0.00035616,14]
[354599393,1740594652259,-501.22436758,0.00035616,14]
[354599394,1740594652268,-151.0,0.00035616,7]
[354599395,1740594652277,-151.0,0.00035616,7]
[354599396,1740594652285,-151.0,0.00035616,7]
[354599397,1740594652298,-500.0,0.00035616,14]
[354599398,1740594652307,-500.0,0.00035616,14]
[354599399,1740594652316,-1798.91,0.00035616,14]
[354599400,1740594652324,-500.0,0.00035616,14]
[354599401,1740594652333,-500.0,0.00035616,14]
[354599402,1740594652342,-500.0,0.00035616,14]
[354599403,1740594652351,-776.12,0.00035616,14]
[354599404,1740594652359,-500.0,0.00035616,14]
[354599405,1740594652368,-500.0,0.00035616,14]
[354599406,1740594652377,-500.0,0.00035616,14]
[354599407,1740594652386,-570.2,0.00035616,14]
[354599408,1740594652395,-500.0,0.00035616,14]
[354599409,1740594652404,-878.56,0.00035616,14]
[354599410,1740594652413,-500.0,0.00035616,14]
[354599411,1740594652422,-500.0,0.00035616,14]
[354599412,1740594652431,-975.68,0.00035616,14]
[354599413,1740594652440,-500.0,0.00035616,14]
[354599414,1740594652449,-500.0,0.00035616,14]
[354599415,1740594652458,-1862.09,0.00035616,14]
[354599416,1740594652467,-500.0,0.00035616,14]
[354599417,1740594652476,-500.0,0.00035616,14]
[354599418,1740594652485,-1410.88,0.00035616,14]
[354599419,1740594652494,-500.0,0.00035616,14]
[354599420,1740594652503,-500.0,0.00035616,14]
[354599421,1740594652512,-500.0,0.00035616,14]
[354599422,1740594652522,-500.0,0.00035616,14]
[354599423,1740594652531,-500.0,0.00035616,14]
[354599424,1740594652547,-500.0,0.00035616,14]
[354599425,1740594652557,-500.0,0.00035616,14]
[354599426,1740594652566,-500.0,0.00035616,14]
[354599427,1740594652576,-500.0,0.00035616,14]
[354599428,1740594652586,-500.0,0.00035616,14]
[354599429,1740594652596,-500.72907383,0.00035616,14]
[354599430,1740594652605,-500.0,0.00035616,14]
[354599431,1740594652615,-521.42,0.00035616,14]
[354599432,1740594652626,-500.0,0.00035616,14]
[354599433,1740594652635,-500.0,0.00035616,14]
[354599434,1740594652645,-550.57,0.00035616,14]
[354599435,1740594652656,-500.0,0.00035616,14]
[354599436,1740594652666,-500.0,0.00035616,14]
[354599437,1740594652676,-850.61,0.00035616,14]
[354599438,1740594652686,-500.0,0.00035616,14]
[354599439,1740594652695,-509.68529075,0.00035616,14]
[354599440,1740594652705,-694.13,0.00035616,14]
[354599441,1740594652715,-911.76,0.00035616,14]
[354599442,1740594652726,-500.0,0.00035616,14]
[354599443,1740594652735,-500.0,0.00035616,14]
[354599444,1740594652745,-500.0,0.00035616,14]
[354599445,1740594652754,-909.59,0.00035616,14]
[354599446,1740594652764,-1956.65,0.00035616,14]
[354599447,1740594652774,-719.47,0.00035616,14]
[354599448,1740594652784,-500.0,0.00035616,14]
[354599449,1740594652806,-997.9,0.00035616,14]
[354599450,1740594652816,-682.49,0.00035616,14]
[354599451,1740594652827,-500.0,0.00035616,14]
[354599452,1740594652837,-500.0,0.00035616,14]
[354599453,1740594652848,-1991.61,0.00035616,14]
[354599454,1740594652858,-500.0,0.00035616,14]
[354599455,1740594652869,-1073.71,0.00035616,14]
[354599456,1740594652879,-500.0,0.00035616,14]
[354599457,1740594652889,-865.22,0.00035616,14]
[354599458,1740594652899,-500.0,0.00035616,14]
[354599459,1740594652909,-500.0,0.00035616,14]
[354599460,1740594652918,-500.0,0.00035616,14]
[354599461,1740594652928,-500.0,0.00035616,14]
[354599462,1740594652938,-537.04,0.00035616,14]
[354599463,1740594652947,-1188.47,0.00035616,14]
[354599464,1740594652956,-500.0,0.00035616,14]
[354599465,1740594652966,-822.89,0.00035616,14]
[354599466,1740594652975,-500.0,0.00035616,14]
[354599467,1740594652984,-500.0,0.00035616,14]
[354599468,1740594652994,-500.0,0.00035616,14]
[354599469,1740594653003,-500.0,0.00035616,14]
[354599470,1740594653012,-500.0,0.00035616,14]
[354599471,1740594653022,-500.0,0.00035616,14]
[354599472,1740594653031,-500.0,0.00035616,14]
[354599473,1740594653043,-1664.36,0.00035616,14]
[354599474,1740594653053,-500.0,0.00035616,14]
[354599475,1740594653062,-521.16971875,0.00035616,14]
[354599476,1740594653072,-1239.57,0.00035616,14]
[354599477,1740594653081,-500.0,0.00035616,14]
[354599478,1740594653091,-1456.59,0.00035616,14]
[354599479,1740594653100,-500.0,0.00035616,14]
[354599480,1740594653109,-915.27,0.00035616,14]
[354599481,1740594653119,-500.0,0.00035616,14]
[354599482,1740594653128,-764.816549,0.00035616,7]
[354599483,1740594653138,-764.816549,0.00035616,7]
[354599484,1740594653147,-764.816549,0.00035616,7]
[354599485,1740594653156,-934.71,0.00035616,14]
[354599486,1740594653165,-1101.77,0.00035616,14]
[354599487,1740594653174,-1148.78,0.00035616,14]
[354599488,1740594653184,-500.0,0.00035616,14]
[354599489,1740594653193,-764.816549,0.00035616,7]
[354599490,1740594653203,-1368.97,0.00035616,14]
[354599491,1740594653212,-764.816549,0.00035616,7]
[354599492,1740594653221,-764.816549,0.00035616,7]
[354599493,1740594653230,-1000.0,0.00035616,14]
[354599494,1740594653240,-500.0,0.00035616,14]
[354599495,1740594653249,-500.0,0.00035616,14]
[354599496,1740594653258,-1212.13,0.00035616,14]
[354599497,1740594653267,-500.0,0.00035616,14]
[354599498,1740594653276,-500.0,0.00035616,14]
[354599499,1740594653285,-500.0,0.00035616,14]
[354599500,1740594653298,-500.0,0.00035616,14]
[354599501,1740594653308,-1149.7,0.00035616,14]
[354599502,1740594653317,-500.0,0.00035616,14]
[354599503,1740594653326,-500.0,0.00035616,14]
[354599504,1740594653336,-777.08,0.00035616,14]
[354599505,1740594653345,-677.32,0.00035616,14]
[354599506,1740594653354,-500.0,0.00035616,14]
[354599507,1740594653363,-500.0,0.00035616,14]
[354599508,1740594653372,-500.0,0.00035616,14]
[354599509,1740594653381,-976.39,0.00035616,14]
[354599510,1740594653391,-497.54411396,0.00035616,14]
[354599511,1740594653400,-499.999999,0.00035616,14]
[354599512,1740594653409,-500.0,0.00035616,14]
[354599513,1740594653419,-500.0,0.00035616,14]
[354599514,1740594653430,-500.0,0.00035616,14]
[354599515,1740594653442,-151.0,0.00035616,7]
[354599516,1740594653451,-151.0,0.00035616,7]
[354599517,1740594653460,-1703.63,0.00035616,14]
[354599518,1740594653469,-2489.0,0.00035616,14]
[354599519,1740594653478,-151.0,0.00035616,7]
[354599520,1740594653488,-937.6,0.00035616,14]
[354599521,1740594653497,-597.15,0.00035616,14]
[354599522,1740594653507,-677.47,0.00035616,14]
[354599523,1740594653516,-151.0,0.00035616,7]
[354599524,1740594653532,-1063.53,0.00035616,14]
[354599525,1740594653545,-151.0,0.00035616,7]
[354599526,1740594653554,-151.0,0.00035616,7]
[354599527,1740594653563,-1017.71,0.00035616,14]
[354599528,1740594653574,-500.0,0.00035616,14]
[354599529,1740594653584,-500.0,0.00035616,14]
[354599530,1740594653593,-500.0,0.00035616,14]
[354599531,1740594653603,-556.14,0.00035616,14]
[354599532,1740594653612,-500.0,0.00035616,14]
[354599533,1740594653621,-3293.02,0.00035616,14]
[354599534,1740594653631,-648.41,0.00035616,14]
[354599535,1740594653639,-500.0,0.00035616,14]
[354599536,1740594653649,-608.68,0.00035616,14]
[354599537,1740594653658,-500.0,0.00035616,14]
[354599538,1740594653667,-500.0,0.00035616,14]
[354599539,1740594653677,-174.768164,0.00035616,7]
[354599540,1740594653686,-174.768164,0.00035616,7]
[354599541,1740594653695,-174.768164,0.00035616,7]
[354599542,1740594653705,-500.0,0.00035616,14]
[354599543,1740594653714,-174.768164,0.00035616,7]
[354599544,1740594653723,-174.768164,0.00035616,7]
[354599545,1740594653732,-174.768164,0.00035616,7]
[354599546,1740594653742,-500.0,0.00035616,14]
[354599547,1740594653751,-993.87,0.00035616,14]
[354599548,1740594653761,-3819.89,0.00035616,14]
[354599549,1740594653770,-151.0,0.00035616,7]
[354599550,1740594653780,-4216.63,0.00035616,14]
[354599551,1740594653793,-1155.86,0.00035616,14]
[354599552,1740594653802,-500.0,0.00035616,14]
[354599553,1740594653811,-151.0,0.00035616,7]
[354599554,1740594653821,-231.986258,0.00035616,7]
[354599555,1740594653830,-607.97,0.00035616,14]
[354599556,1740594653840,-739.04,0.00035616,14]
[354599557,1740594653850,-512.02,0.00035616,14]
[354599558,1740594653859,-500.0,0.00035616,14]
[354599559,1740594653869,-1228.02,0.00035616,14]
[354599560,1740594653878,-2062.36,0.00035616,14]
[354599561,1740594653888,-504.07265802,0.00035616,14]
[354599562,1740594653898,-1523.45,0.00035616,14]
[354599563,1740594653907,-1062.54,0.00035616,14]
[354599564,1740594653917,-465.359905,0.00035616,7]
[354599565,1740594653927,-500.0,0.00035616,14]
[354599566,1740594653936,-465.359905,0.00035616,7]
[354599567,1740594653946,-465.359905,0.00035616,7]
[354599568,1740594653956,-500.0,0.00035616,14]
[354599569,1740594654076,-500.0,0.00035616,14]
[354599570,1740594654099,-500.0,0.00035616,14]
[354599571,1740594654109,-500.0,0.00035616,14]
[354599572,1740594654119,-2349.92,0.00035616,14]
[354599573,1740594654129,-500.0,0.00035616,14]
[354599574,1740594654138,-535.53593923,0.00035616,14]
[354599575,1740594654148,-910.06,0.00035616,14]
[354599576,1740594654157,-926.49,0.00035616,14]
[354599577,1740594654167,-1830.82,0.00035616,14]
[354599578,1740594654177,-801.87,0.00035616,14]
[354599579,1740594654187,-465.359905,0.00035616,7]
[354599580,1740594654196,-500.0,0.00035616,14]
[354599581,1740594654206,-465.359905,0.00035616,7]
[354599582,1740594654215,-500.0,0.00035616,14]
[354599583,1740594654225,-465.359905,0.00035616,7]
[354599584,1740594654234,-2307.51,0.00035616,14]